[Event "44th Chess Olympiad Women 2022"]
[Site "Chennai"]
[Date "2022.08.03"]
[Round "6.58"]
[White "Thetsane Nteboheleng"]
[Black "Neupane, Anisha"]
[Result "*"]
[WhiteElo "1259"]
[BlackElo "1488"]
[Annotator "NA RC"]
[PlyCount "131"]
[EventDate "2022.??.??"]
[TimeControl "60"]

1. e4 {[%emt 0:00:05]} c5 {[%emt 0:00:14]} 2. Nf3 {[%emt 0:00:06]} d6 {[%emt 0:
00:00]} 3. d4 {[%emt 0:00:04]} cxd4 {[%emt 0:00:51]} 4. Nxd4 {[%emt 0:00:05]}
Nc6 {[%emt 0:00:23]} 5. Nb3 {[%emt 0:00:33]} g6 {[%emt 0:00:28]} 6. Nc3 {
[%emt 0:00:10]} Bg7 {[%emt 0:00:22]} 7. Bc4 {[%emt 0:00:14]} Nf6 {[%emt 0:00:
00]} 8. f3 {[%emt 0:00:30]} Bd7 {[%emt 0:01:14]} 9. Be3 {[%emt 0:00:06]} a6 {
[%emt 0:01:02]} 10. Qd2 {[%emt 0:07:39]} Rc8 {[%emt 0:05:48]} 11. Be2 {[%emt 0:
00:00]} O-O {[%emt 0:04:34]} 12. g4 {[%emt 0:00:02]} Ne5 {[%emt 0:04:03]} 13.
O-O-O {[%emt 0:03:06]} Nc4 {[%emt 0:03:24]} 14. Bxc4 {[%emt 0:01:32]} Rxc4 {
[%emt 0:00:28]} 15. g5 {[%emt 0:00:20]} Nh5 {[%emt 0:11:23]} 16. Qd5 {[%emt 0:
00:00]} b5 {[%emt 0:04:03]} 17. Qd2 {[%emt 0:02:58]} Be6 {[%emt 0:10:48]} 18.
Qd3 {[%emt 0:04:46]} Rc8 {[%emt 0:04:28]} 19. f4 {[%emt 0:01:15]} Bxb3 {
[%emt 0:00:45]} 20. axb3 {[%emt 0:00:10]} Qa5 {[%emt 0:05:18]} 21. Nd5 {
[%emt 0:04:06]} Rfe8 {[%emt 0:03:57]} 22. Kb1 {[%emt 0:00:34]} Rc6 {[%emt 0:00:
00]} 23. Bb6 {[%emt 0:14:17]} Rxb6 {[%emt 0:00:36]} 24. b4 {[%emt 0:00:06]} Qa4
{[%emt 0:03:18]} 25. Nxb6 {[%emt 0:00:07]} Qxb4 {[%emt 0:00:44]} 26. c3 {
[%emt 0:02:39]} Qc5 {[%emt 0:02:12]} 27. Nd5 {[%emt 0:00:16]} e6 {[%emt 0:00:
00]} 28. Nf6+ {[%emt 0:00:46]} Nxf6 {[%emt 0:00:57]} 29. gxf6 {[%emt 0:00:05]}
Bxf6 {[%emt 0:00:39]} 30. Qxd6 {[%emt 0:00:07]} Qc4 {[%emt 0:03:55]} 31. e5 {
[%emt 0:00:34]} Bh4 {[%emt 0:01:21]} 32. Rd4 {[%emt 0:01:58]} Qe2 {[%emt 0:00:
00]} 33. Qc6 {[%emt 0:00:25]} Rf8 {[%emt 0:02:39]} 34. f5 {[%emt 0:00:25]} Bf2
{[%emt 0:02:17]} 35. Qg2 {[%emt 0:00:56]} Qe3 {[%emt 0:06:01]} 36. f6 {[%emt 0:
00:00]} b4 {[%emt 0:01:12]} 37. Rf1 {[%emt 0:02:06]} Qxe5 {[%emt 0:00:53]} 38.
Qxf2 {[%emt 0:01:01]} bxc3 {[%emt 0:00:10]} 39. Qf4 {[%emt 0:00:21]} Qb5 {
[%emt 0:00:35]} 40. Rb4 {[%emt 0:00:19]} Qd3+ {[%emt 0:00:18]} 41. Ka1 {
[%emt 0:30:36]} cxb2+ {[%emt 0:30:42]} 42. Rxb2 {[%emt 0:00:55]} Qa3+ {[%emt 0:
00:00]} 43. Kb1 {[%emt 0:00:30]} Qd3+ {[%emt 0:00:17]} 44. Ka2 {[%emt 0:00:09]}
Qd5+ {[%emt 0:00:00]} 45. Rb3 {[%emt 0:00:00]} Qa5+ {[%emt 0:00:00]} 46. Kb1 {
[%emt 0:00:00]} Qh5 {[%emt 0:00:00]} 47. Rff3 {[%emt 0:00:00]} e5 {[%emt 0:00:
00]} 48. Qd2 {[%emt 0:00:00]} Qh4 {[%emt 0:00:00]} 49. Qb4 {[%emt 0:00:00]}
Qxb4 {[%emt 0:00:00]} 50. Rxb4 {[%emt 0:00:00]} h5 {[%emt 0:00:00]} 51. Re3 {
[%emt 0:00:00]} Re8 {[%emt 0:00:00]} 52. Rb6 {[%emt 0:00:00]} Re6 {[%emt 0:00:
00]} 53. Rxe6 {[%emt 0:00:00]} fxe6 {[%emt 0:00:00]} 54. Rxe5 {[%emt 0:00:00]}
Kf7 {[%emt 0:00:00]} 55. Ra5 {[%emt 0:00:00]} Kxf6 {[%emt 0:00:00]} 56. Kc2 {
[%emt 0:00:00]} g5 {[%emt 0:00:00]} 57. Kd3 {[%emt 0:00:00]} Kg6 {[%emt 0:00:
00]} 58. Ke4 {[%emt 0:00:00]} Kf6 {[%emt 0:00:00]} 59. Rxa6 {[%emt 0:00:00]} h4
{[%emt 0:00:00]} 60. h3 {[%emt 0:00:00]} g4 {[%emt 0:00:00]} 61. hxg4 {[%emt 0:
00:00]} Kg5 {[%emt 0:00:00]} 62. Rxe6 {[%emt 0:00:00]} Kxg4 {[%emt 0:00:00]}
63. Rg6+ {[%emt 0:00:00]} Kh3 {[%emt 0:00:00]} 64. Kf4 {[%emt 0:00:00]} Kh2 {
[%emt 0:00:00]} 65. Rh6 {[%emt 0:00:00]} Kh3 {[%emt 0:00:00]} 66. Kf3 {[%emt 0:
00:00]} *

[Event "44th Chess Olympiad Women 2022"]
[Site "Chennai"]
[Date "2022.08.03"]
[Round "6.59"]
[White "Yavo Tchetche, Marie"]
[Black "Henderson de La Fuente, Andrea"]
[Result "0-1"]
[WhiteElo "1313"]
[BlackElo "1962"]
[Annotator "NA RC"]
[PlyCount "72"]
[EventDate "2022.??.??"]
[TimeControl "60"]

1. d4 {[%emt 0:00:52]} Nf6 {[%emt 0:00:08]} 2. c4 {[%emt 0:02:20]} e6 {[%emt 0:
00:00]} 3. a3 {[%emt 0:02:15]} d5 {[%emt 0:06:51]} 4. Nf3 {[%emt 0:05:06]} dxc4
{[%emt 0:06:31]} 5. Qa4+ {[%emt 0:03:17]} Nbd7 {[%emt 0:07:27]} 6. Nc3 {
[%emt 0:06:33]} Be7 {[%emt 0:13:47]} 7. e4 {[%emt 0:02:54]} O-O {[%emt 0:00:47]
} 8. Qxc4 {[%emt 0:01:29]} c5 {[%emt 0:08:26]} 9. Be2 {[%emt 0:05:54]} a6 {
[%emt 0:07:19]} 10. dxc5 {[%emt 0:10:06]} Nxc5 {[%emt 0:00:25]} 11. e5 {
[%emt 0:02:15]} b5 {[%emt 0:06:49]} 12. Qd4 {[%emt 0:03:18]} Nb3 {[%emt 0:00:
00]} 13. Qxd8 {[%emt 0:03:02]} Bxd8 {[%emt 0:01:58]} 14. Rb1 {[%emt 0:05:02]}
Nd5 {[%emt 0:01:57]} 15. Ne4 {[%emt 0:02:52]} Be7 {[%emt 0:05:04]} 16. O-O {
[%emt 0:02:55]} Nxc1 {[%emt 0:01:54]} 17. Rbxc1 {[%emt 0:03:27]} Nf4 {[%emt 0:
00:00]} 18. Rfe1 {[%emt 0:04:13]} Bb7 {[%emt 0:02:19]} 19. Bf1 {[%emt 0:03:19]}
Rac8 {[%emt 0:02:33]} 20. Ned2 {[%emt 0:04:33]} h6 {[%emt 0:03:16]} 21. g3 {
[%emt 0:03:20]} Nd5 {[%emt 0:01:17]} 22. Bg2 {[%emt 0:02:45]} b4 {[%emt 0:00:
00]} 23. Nc4 {[%emt 0:03:55]} bxa3 {[%emt 0:00:25]} 24. Nxa3 {[%emt 0:02:52]}
Nb4 {[%emt 0:01:22]} 25. Red1 {[%emt 0:02:07]} Bd5 {[%emt 0:04:03]} 26. Nd4 {
[%emt 0:02:48]} Rxc1 {[%emt 0:01:31]} 27. Rxc1 {[%emt 0:03:02]} Nd3 {[%emt 0:
00:00]} 28. Rc7 {[%emt 0:02:23]} Bc5 {[%emt 0:00:39]} 29. Nac2 {[%emt 0:02:09]}
Bb6 {[%emt 0:00:26]} 30. Rd7 {[%emt 0:01:42]} Nxe5 {[%emt 0:01:34]} 31. Rd6 {
[%emt 0:01:26]} Nc4 {[%emt 0:00:07]} 32. Rd7 {[%emt 0:00:40]} Bxg2 {[%emt 0:00:
00]} 33. Kxg2 {[%emt 0:00:53]} Nxb2 {[%emt 0:03:12]} 34. Nc6 {[%emt 0:00:37]}
a5 {[%emt 0:00:52]} 35. Ne5 {[%emt 0:00:59]} Rd8 {[%emt 0:00:52]} 36. Rxf7 {
[%emt 0:02:17]} Rd2 {[%emt 0:00:02]} 0-1

[Event "44th Chess Olympiad Women 2022"]
[Site "Chennai"]
[Date "2022.08.03"]
[Round "6.60"]
[White "Burbach, Anya Belle"]
[Black "Abdul Rasheed, Mariyam Laisa"]
[Result "1-0"]
[WhiteElo "1375"]
[BlackElo "1145"]
[Annotator "NA RC"]
[PlyCount "113"]
[EventDate "2022.??.??"]
[TimeControl "60"]

1. e4 {[%emt 0:00:08]} c5 {[%emt 0:00:05]} 2. d4 {[%emt 0:00:19]} cxd4 {
[%emt 0:00:08]} 3. c3 {[%emt 0:00:09]} d3 {[%emt 0:01:13]} 4. Bxd3 {[%emt 0:00:
00]} d6 {[%emt 0:00:15]} 5. c4 {[%emt 0:01:35]} Nf6 {[%emt 0:00:37]} 6. Nc3 {
[%emt 0:01:00]} g6 {[%emt 0:01:11]} 7. h3 {[%emt 0:01:06]} Bg7 {[%emt 0:00:16]}
8. Nf3 {[%emt 0:00:38]} Nc6 {[%emt 0:00:17]} 9. O-O {[%emt 0:01:55]} O-O {
[%emt 0:00:14]} 10. Be3 {[%emt 0:00:40]} Bd7 {[%emt 0:01:59]} 11. Qd2 {[%emt 0:
00:00]} Re8 {[%emt 0:00:27]} 12. Rac1 {[%emt 0:03:14]} Rc8 {[%emt 0:01:39]} 13.
Rfd1 {[%emt 0:01:17]} a6 {[%emt 0:17:14]} 14. b3 {[%emt 0:10:25]} Qa5 {[%emt 0:
00:00]} 15. c5 {[%emt 0:06:07]} dxc5 {[%emt 0:09:33]} 16. e5 {[%emt 0:00:45]}
Nh5 {[%emt 0:11:02]} 17. g4 {[%emt 0:00:36]} Qb4 {[%emt 0:03:56]} 18. Nd5 {
[%emt 0:06:36]} Qxd2 {[%emt 0:04:49]} 19. Rxd2 {[%emt 0:00:19]} Nxe5 {[%emt 0:
00:00]} 20. Nxe5 {[%emt 0:00:21]} Bxe5 {[%emt 0:00:38]} 21. gxh5 {[%emt 0:00:
00]} Bxh3 {[%emt 0:00:34]} 22. hxg6 {[%emt 0:02:29]} hxg6 {[%emt 0:02:00]} 23.
Nf4 {[%emt 0:02:50]} Bg4 {[%emt 0:02:20]} 24. Be4 {[%emt 0:03:26]} b6 {[%emt 0:
00:00]} 25. f3 {[%emt 0:00:40]} Bf5 {[%emt 0:02:01]} 26. Bxf5 {[%emt 0:00:14]}
gxf5 {[%emt 0:00:06]} 27. Rg2+ {[%emt 0:02:18]} Kf8 {[%emt 0:00:33]} 28. Nd5 {
[%emt 0:03:59]} Rc6 {[%emt 0:00:40]} 29. Kf2 {[%emt 0:04:44]} Rd8 {[%emt 0:00:
00]} 30. Nf4 {[%emt 0:01:24]} Rcd6 {[%emt 0:01:43]} 31. Rcg1 {[%emt 0:02:37]}
e6 {[%emt 0:01:14]} 32. Rg8+ {[%emt 0:01:31]} Ke7 {[%emt 0:00:10]} 33. Rxd8 {
[%emt 0:00:17]} Rxd8 {[%emt 0:00:42]} 34. Ke2 {[%emt 0:03:00]} Bd4 {[%emt 0:00:
00]} 35. Nd3 {[%emt 0:03:13]} Bxe3 {[%emt 0:03:22]} 36. Kxe3 {[%emt 0:00:08]}
Rd4 {[%emt 0:00:38]} 37. Rc1 {[%emt 0:00:50]} a5 {[%emt 0:03:20]} 38. Rc4 {
[%emt 0:02:28]} Rxc4 {[%emt 0:01:44]} 39. bxc4 {[%emt 0:00:06]} Kd6 {[%emt 0:
00:00]} 40. a4 {[%emt 0:03:20]} f6 {[%emt 0:00:31]} 41. Nf4 {[%emt 0:34:51]}
Ke5 {[%emt 0:33:26]} 42. Nh5 {[%emt 0:00:22]} Kd6 {[%emt 0:06:03]} 43. Nxf6 {
[%emt 0:00:17]} Ke7 {[%emt 0:00:36]} 44. Nh5 {[%emt 0:00:45]} Kf7 {[%emt 0:00:
00]} 45. Nf4 {[%emt 0:04:20]} e5 {[%emt 0:00:00]} 46. Nd5 {[%emt 0:00:00]} Kg6
{[%emt 0:00:00]} 47. Nxb6 {[%emt 0:00:00]} Kg5 {[%emt 0:00:00]} 48. Nd7 {
[%emt 0:00:00]} f4+ {[%emt 0:00:00]} 49. Ke4 {[%emt 0:00:00]} Kh4 {[%emt 0:00:
00]} 50. Nxc5 {[%emt 0:00:00]} Kg3 {[%emt 0:00:00]} 51. Nd3 {[%emt 0:00:00]}
Kg2 {[%emt 0:00:00]} 52. c5 {[%emt 0:00:00]} Kf1 {[%emt 0:00:00]} 53. c6 {
[%emt 0:00:00]} Ke2 {[%emt 0:00:00]} 54. c7 {[%emt 0:00:00]} Kd1 {[%emt 0:00:
00]} 55. c8=Q {[%emt 0:00:00]} Kd2 {[%emt 0:00:00]} 56. Qc1+ {[%emt 0:00:00]}
Ke2 {[%emt 0:00:00]} 57. Qe1# {[%emt 0:00:00]} 1-0

[Event "44th Chess Olympiad Women 2022"]
[Site "Chennai"]
[Date "2022.08.03"]
[Round "6.60"]
[White "Kiyan Mohamed, Usamath"]
[Black "Buhagiar, Melita Sunan"]
[Result "*"]
[WhiteElo "1100"]
[BlackElo "1431"]
[Annotator "NA RC"]
[PlyCount "112"]
[EventDate "2022.??.??"]
[TimeControl "60"]

1. e4 {[%emt 0:00:02]} c5 {[%emt 0:00:05]} 2. Nf3 {[%emt 0:00:05]} d6 {[%emt 0:
00:00]} 3. d4 {[%emt 0:00:07]} cxd4 {[%emt 0:00:05]} 4. Nxd4 {[%emt 0:00:08]}
Nf6 {[%emt 0:00:06]} 5. Nc3 {[%emt 0:00:06]} a6 {[%emt 0:00:16]} 6. Be3 {
[%emt 0:00:28]} e6 {[%emt 0:00:33]} 7. f3 {[%emt 0:03:56]} b5 {[%emt 0:00:47]}
8. a3 {[%emt 0:01:04]} Bb7 {[%emt 0:00:43]} 9. Bd3 {[%emt 0:03:44]} Be7 {
[%emt 0:00:50]} 10. Qd2 {[%emt 0:00:14]} Nbd7 {[%emt 0:00:49]} 11. O-O {
[%emt 0:08:28]} O-O {[%emt 0:01:02]} 12. Qe2 {[%emt 0:06:44]} Rc8 {[%emt 0:00:
00]} 13. Bd2 {[%emt 0:06:02]} Qc7 {[%emt 0:10:42]} 14. b4 {[%emt 0:02:30]} Nb6
{[%emt 0:03:45]} 15. Rfc1 {[%emt 0:12:59]} Nfd7 {[%emt 0:03:49]} 16. Qe3 {
[%emt 0:07:13]} Ne5 {[%emt 0:03:20]} 17. Nd1 {[%emt 0:11:00]} Nec4 {[%emt 0:00:
00]} 18. Bxc4 {[%emt 0:00:18]} Nxc4 {[%emt 0:00:08]} 19. Qd3 {[%emt 0:01:06]}
Qb6 {[%emt 0:05:39]} 20. Kh1 {[%emt 0:05:36]} Nxd2 {[%emt 0:06:06]} 21. Qxd2 {
[%emt 0:00:27]} Bf6 {[%emt 0:02:56]} 22. c3 {[%emt 0:01:44]} d5 {[%emt 0:01:14]
} 23. exd5 {[%emt 0:04:35]} Bxd5 {[%emt 0:00:09]} 24. Ne2 {[%emt 0:02:44]} Rfd8
{[%emt 0:03:12]} 25. Qe3 {[%emt 0:01:15]} Qb7 {[%emt 0:04:33]} 26. Nf4 {
[%emt 0:07:20]} Bg5 {[%emt 0:01:24]} 27. Nf2 {[%emt 0:03:40]} Qb8 {[%emt 0:00:
00]} 28. N2h3 {[%emt 0:01:03]} Bh6 {[%emt 0:03:52]} 29. Re1 {[%emt 0:01:41]} f6
{[%emt 0:04:06]} 30. g3 {[%emt 0:00:51]} e5 {[%emt 0:05:41]} 31. Rac1 {[%emt 0:
00:00]} exf4 {[%emt 0:02:22]} 32. gxf4 {[%emt 0:00:36]} Qb7 {[%emt 0:00:55]}
33. Kg2 {[%emt 0:01:01]} Rd7 {[%emt 0:04:44]} 34. Rc2 {[%emt 0:01:25]} Rcd8 {
[%emt 0:01:17]} 35. Ng1 {[%emt 0:01:12]} Bc4 {[%emt 0:01:06]} 36. Kg3 {[%emt 0:
00:00]} Qd5 {[%emt 0:03:01]} 37. Qd4 {[%emt 0:00:57]} Qxd4 {[%emt 0:00:44]} 38.
cxd4 {[%emt 0:00:05]} Rxd4 {[%emt 0:00:20]} 39. Re3 {[%emt 0:00:27]} Bxf4+ {
[%emt 0:00:15]} 40. Kf2 {[%emt 0:00:17]} Bxe3+ {[%emt 0:00:34]} 41. Kxe3 {
[%emt 0:30:07]} f5 {[%emt 0:31:03]} 42. Nh3 {[%emt 0:00:30]} h6 {[%emt 0:01:07]
} 43. f4 {[%emt 0:00:52]} Rd3+ {[%emt 0:00:07]} 44. Kf2 {[%emt 0:00:23]} Rxh3 {
[%emt 0:00:06]} 45. Kg2 {[%emt 0:00:57]} Rhd3 {[%emt 0:00:14]} 46. Kg1 {
[%emt 0:00:47]} Rd1+ {[%emt 0:00:29]} 47. Kg2 {[%emt 0:00:12]} R1d2+ 48. Rxd2 {
[%emt 0:00:07]} Rxd2+ {[%emt 0:00:11]} 49. Kg3 {[%emt 0:00:07]} g5 {[%emt 0:00:
00]} 50. fxg5 {[%emt 0:00:16]} hxg5 {[%emt 0:00:09]} 51. h3 {[%emt 0:00:14]}
Rd3+ {[%emt 0:00:14]} 52. Kg2 {[%emt 0:00:10]} Kf7 {[%emt 0:00:08]} 53. Kh2 {
[%emt 0:00:23]} Ke6 {[%emt 0:00:06]} 54. Kg2 {[%emt 0:00:15]} Ke5 {[%emt 0:00:
00]} 55. Kh2 {[%emt 0:00:13]} Kf4 {[%emt 0:00:14]} 56. Kg2 {[%emt 0:00:11]}
Rd2+ {[%emt 0:16:25]} *

[Event "44th Chess Olympiad Women 2022"]
[Site "Chennai"]
[Date "2022.08.03"]
[Round "6.60"]
[White "Nuha, Rilwan"]
[Black "Khantree, Napat"]
[Result "0-1"]
[WhiteElo "1068"]
[BlackElo "1362"]
[Annotator "NA RC"]
[PlyCount "94"]
[EventDate "2022.??.??"]
[TimeControl "60"]

1. e4 {[%emt 0:00:01]} e5 {[%emt 0:00:06]} 2. Nf3 {[%emt 0:00:07]} Nc6 {
[%emt 0:00:05]} 3. Bc4 {[%emt 0:00:06]} Bc5 {[%emt 0:00:47]} 4. Nc3 {[%emt 0:
00:00]} Nf6 {[%emt 0:00:36]} 5. d3 {[%emt 0:00:07]} h6 {[%emt 0:02:17]} 6. O-O
{[%emt 0:00:27]} O-O {[%emt 0:00:39]} 7. Be3 {[%emt 0:00:39]} Bb6 {[%emt 0:00:
00]} 8. a3 {[%emt 0:01:37]} d6 {[%emt 0:00:07]} 9. h3 {[%emt 0:00:08]} Be6 {
[%emt 0:00:40]} 10. Ba2 {[%emt 0:00:10]} Nd4 {[%emt 0:00:34]} 11. Na4 {[%emt 0:
00:00]} Nc6 {[%emt 0:09:39]} 12. c3 {[%emt 0:03:11]} Bxe3 {[%emt 0:01:18]} 13.
fxe3 {[%emt 0:06:17]} b5 {[%emt 0:00:16]} 14. b4 {[%emt 0:01:28]} bxa4 {
[%emt 0:00:15]} 15. Qxa4 {[%emt 0:00:08]} Bxa2 {[%emt 0:04:56]} 16. Rxa2 {
[%emt 0:00:36]} Ne7 {[%emt 0:00:14]} 17. Raf2 {[%emt 0:00:30]} Qd7 {[%emt 0:00:
00]} 18. Qb3 {[%emt 0:01:13]} Qb5 {[%emt 0:02:36]} 19. c4 {[%emt 0:01:27]} Qb6
{[%emt 0:00:06]} 20. Re2 {[%emt 0:01:28]} Ng6 {[%emt 0:00:35]} 21. Qd1 {
[%emt 0:02:46]} Nh5 {[%emt 0:00:52]} 22. Qe1 {[%emt 0:00:34]} Qc6 {[%emt 0:00:
00]} 23. Nh4 {[%emt 0:00:55]} Nxh4 {[%emt 0:03:16]} 24. Qxh4 {[%emt 0:00:03]}
Nf6 {[%emt 0:00:10]} 25. Rf3 {[%emt 0:02:18]} Nh7 {[%emt 0:01:45]} 26. Ref2 {
[%emt 0:04:56]} Qd7 {[%emt 0:01:09]} 27. Rg3 {[%emt 0:01:05]} Qe6 {[%emt 0:00:
00]} 28. Rf5 {[%emt 0:01:34]} Ng5 {[%emt 0:01:18]} 29. Qh5 {[%emt 0:06:49]} f6
{[%emt 0:03:32]} 30. h4 {[%emt 0:04:26]} Qf7 {[%emt 0:00:21]} 31. Qe2 {[%emt 0:
00:00]} Ne6 {[%emt 0:00:41]} 32. Rh5 {[%emt 0:03:37]} Kh7 {[%emt 0:01:16]} 33.
Rf5 {[%emt 0:11:46]} Qd7 {[%emt 0:02:10]} 34. Qf2 {[%emt 0:06:57]} Qa4 {
[%emt 0:03:23]} 35. Qa2 {[%emt 0:00:19]} Qd1+ {[%emt 0:00:10]} 36. Kh2 {
[%emt 0:03:26]} Qxd3 {[%emt 0:00:12]} 37. c5 {[%emt 0:00:31]} Rae8 {[%emt 0:00:
00]} 38. cxd6 {[%emt 0:01:39]} cxd6 {[%emt 0:01:14]} 39. Qd5 {[%emt 0:03:13]}
Qxd5 {[%emt 0:00:23]} 40. exd5 {[%emt 0:00:03]} Nc7 {[%emt 0:00:14]} 41. e4 {
[%emt 0:30:48]} Rc8 {[%emt 0:32:21]} 42. Rff3 {[%emt 0:00:51]} Nb5 {[%emt 0:00:
00]} 43. a4 {[%emt 0:01:42]} Nd4 {[%emt 0:00:05]} 44. Ra3 {[%emt 0:02:29]} Rc4
{[%emt 0:00:21]} 45. b5 {[%emt 0:03:04]} Rfc8 {[%emt 0:00:56]} 46. h5 {[%emt 0:
00:00]} Ne2 {[%emt 0:00:14]} 47. Rge3 {[%emt 0:01:01]} Nc3 {[%emt 0:00:09]} 0-1

[Event "44th Chess Olympiad Women 2022"]
[Site "Chennai"]
[Date "2022.08.03"]
[Round "6.60"]
[White "Prommuang, Araya"]
[Black "Nihaya, Ahmed"]
[Result "0-1"]
[WhiteElo "1651"]
[BlackElo "1233"]
[Annotator "NA RC"]
[PlyCount "58"]
[EventDate "2022.??.??"]
[TimeControl "60"]

1. e4 {[%emt 0:00:05]} e5 {[%emt 0:00:33]} 2. Nf3 {[%emt 0:00:22]} Nc6 {
[%emt 0:00:05]} 3. Bb5 {[%emt 0:00:28]} d6 {[%emt 0:00:19]} 4. d4 {[%emt 0:00:
00]} exd4 {[%emt 0:01:41]} 5. Nxd4 {[%emt 0:00:52]} Bd7 {[%emt 0:00:10]} 6.
Nxc6 {[%emt 0:00:42]} bxc6 {[%emt 0:00:13]} 7. Bc4 {[%emt 0:00:25]} Nf6 {
[%emt 0:00:59]} 8. O-O {[%emt 0:00:43]} Be7 {[%emt 0:00:07]} 9. Nc3 {[%emt 0:
00:00]} O-O {[%emt 0:01:06]} 10. f4 {[%emt 0:08:48]} Bg4 {[%emt 0:03:24]} 11.
Qe1 {[%emt 0:01:35]} d5 {[%emt 0:01:10]} 12. Bd3 {[%emt 0:05:17]} dxe4 {
[%emt 0:03:19]} 13. Nxe4 {[%emt 0:01:15]} Re8 {[%emt 0:01:39]} 14. Qf2 {
[%emt 0:21:55]} Qd5 {[%emt 0:03:42]} 15. Nxf6+ {[%emt 0:03:15]} Bxf6 {[%emt 0:
00:00]} 16. Be3 {[%emt 0:01:18]} Rxe3 {[%emt 0:00:10]} 17. Kh1 {[%emt 0:08:46]}
Bd4 {[%emt 0:01:23]} 18. Qd2 {[%emt 0:07:44]} Rae8 {[%emt 0:02:57]} 19. c4 {
[%emt 0:03:08]} Qd6 {[%emt 0:02:18]} 20. Rae1 {[%emt 0:03:24]} c5 {[%emt 0:00:
00]} 21. Rxe3 {[%emt 0:06:39]} Rxe3 {[%emt 0:01:05]} 22. Qc2 {[%emt 0:02:11]}
h5 {[%emt 0:00:56]} 23. h3 {[%emt 0:06:26]} Bd7 {[%emt 0:00:22]} 24. b3 {
[%emt 0:05:19]} Bc6 {[%emt 0:04:55]} 25. Kh2 {[%emt 0:03:05]} Qf6 {[%emt 0:00:
00]} 26. g3 {[%emt 0:02:08]} h4 {[%emt 0:04:25]} 27. g4 {[%emt 0:01:37]} g5 {
[%emt 0:01:09]} 28. Bh7+ {[%emt 0:02:14]} Kg7 {[%emt 0:00:13]} 29. Rf2 {
[%emt 0:00:44]} Rc3 {[%emt 0:01:44]} 0-1

[Event "44th Chess Olympiad Women 2022"]
[Site "Chennai"]
[Date "2022.08.03"]
[Round "6.61"]
[White "Hadeel Mohammad Kalandar"]
[Black "Razafindrabe, Bakoly"]
[Result "0-1"]
[WhiteElo "1083"]
[BlackElo "1238"]
[Annotator "NA RC"]
[PlyCount "92"]
[EventDate "2022.??.??"]
[TimeControl "60"]

1. e4 {[%emt 0:00:02]} e5 {[%emt 0:00:12]} 2. Nc3 {[%emt 0:00:20]} Nf6 {
[%emt 0:00:22]} 3. Nf3 {[%emt 0:00:39]} Nc6 {[%emt 0:00:24]} 4. Bb5 {[%emt 0:
00:00]} a6 {[%emt 0:00:28]} 5. Ba4 {[%emt 0:01:33]} b5 {[%emt 0:00:30]} 6. Bb3
{[%emt 0:01:34]} Bc5 {[%emt 0:00:33]} 7. d3 {[%emt 0:04:28]} h6 {[%emt 0:02:20]
} 8. O-O {[%emt 0:00:21]} O-O {[%emt 0:00:17]} 9. Qe1 {[%emt 0:10:23]} Bb7 {
[%emt 0:03:36]} 10. Be3 {[%emt 0:03:59]} Bxe3 {[%emt 0:01:20]} 11. Qxe3 {
[%emt 0:01:04]} Re8 {[%emt 0:00:36]} 12. Qd2 {[%emt 0:12:28]} d6 {[%emt 0:00:
00]} 13. Rfe1 {[%emt 0:08:25]} Ne7 {[%emt 0:02:04]} 14. Re2 {[%emt 0:07:14]}
Ng6 {[%emt 0:00:22]} 15. h3 {[%emt 0:04:46]} b4 {[%emt 0:04:10]} 16. Nd5 {
[%emt 0:02:06]} Nxd5 {[%emt 0:00:27]} 17. Bxd5 {[%emt 0:00:43]} Bxd5 {[%emt 0:
00:00]} 18. exd5 {[%emt 0:00:07]} a5 {[%emt 0:00:09]} 19. Rae1 {[%emt 0:02:14]}
Nf4 {[%emt 0:00:23]} 20. Re4 {[%emt 0:01:38]} Nxd5 {[%emt 0:00:18]} 21. d4 {
[%emt 0:01:40]} Nf6 {[%emt 0:00:43]} 22. R4e3 {[%emt 0:01:17]} e4 {[%emt 0:00:
00]} 23. Nh2 {[%emt 0:00:59]} d5 {[%emt 0:00:19]} 24. Rg3 {[%emt 0:00:51]} Kh7
{[%emt 0:00:57]} 25. Ree3 {[%emt 0:05:42]} Qd6 {[%emt 0:02:01]} 26. Qe2 {
[%emt 0:02:57]} g6 {[%emt 0:01:01]} 27. Ng4 {[%emt 0:01:31]} Nh5 {[%emt 0:00:
00]} 28. Rgf3 {[%emt 0:05:04]} exf3 {[%emt 0:03:36]} 29. Qxf3 {[%emt 0:01:15]}
f5 {[%emt 0:02:04]} 30. Ne5 {[%emt 0:02:37]} c6 {[%emt 0:02:54]} 31. g4 {
[%emt 0:05:35]} Ng7 {[%emt 0:01:01]} 32. gxf5 {[%emt 0:03:18]} Nxf5 {[%emt 0:
00:00]} 33. Re2 {[%emt 0:00:35]} Qf6 {[%emt 0:08:40]} 34. Qf4 {[%emt 0:04:08]}
Qg5+ {[%emt 0:03:31]} 35. Qxg5 {[%emt 0:01:39]} hxg5 {[%emt 0:00:08]} 36. Kg2 {
[%emt 0:00:29]} Nxd4 {[%emt 0:00:25]} 37. Rd2 {[%emt 0:00:53]} Rxe5 {[%emt 0:
00:00]} 38. Rxd4 {[%emt 0:00:04]} Re2 {[%emt 0:00:22]} 39. c3 {[%emt 0:02:06]}
bxc3 {[%emt 0:00:14]} 40. bxc3 {[%emt 0:00:13]} Rxa2 {[%emt 0:00:08]} 41. Kg3 {
[%emt 0:30:15]} Rc2 {[%emt 0:30:31]} 42. Rd3 {[%emt 0:00:25]} a4 {[%emt 0:00:
00]} 43. Kg4 {[%emt 0:00:28]} Rxf2 {[%emt 0:01:23]} 44. Rg3 {[%emt 0:01:11]} a3
{[%emt 0:00:34]} 45. Kxg5 {[%emt 0:00:00]} Rf5+ {[%emt 0:00:00]} 46. Kg4 {
[%emt 0:00:00]} Ra4+ {[%emt 0:00:00]} 0-1

[Event "44th Chess Olympiad Women 2022"]
[Site "Chennai"]
[Date "2022.08.03"]
[Round "6.61"]
[White "Nema, Rabab Ahmed"]
[Black "Razafindrabiaza, Christine"]
[Result "1/2-1/2"]
[WhiteElo "1172"]
[BlackElo "1635"]
[Annotator "NA RC"]
[PlyCount "72"]
[EventDate "2022.??.??"]
[TimeControl "60"]

1. d4 {[%emt 0:00:03]} d5 {[%emt 0:00:13]} 2. c4 {[%emt 0:00:06]} e6 {[%emt 0:
00:00]} 3. e3 {[%emt 0:00:17]} Nf6 {[%emt 0:00:23]} 4. Nc3 {[%emt 0:00:07]} Bb4
{[%emt 0:00:36]} 5. Nf3 {[%emt 0:01:09]} Nc6 {[%emt 0:00:24]} 6. a3 {[%emt 0:
00:00]} Bxc3+ {[%emt 0:00:12]} 7. bxc3 {[%emt 0:00:16]} O-O {[%emt 0:00:34]} 8.
Bd3 {[%emt 0:00:30]} Ne7 {[%emt 0:02:16]} 9. O-O {[%emt 0:01:56]} b6 {[%emt 0:
00:00]} 10. Ne5 {[%emt 0:08:37]} Bb7 {[%emt 0:01:55]} 11. Qc2 {[%emt 0:05:26]}
Ng6 {[%emt 0:03:07]} 12. Nxg6 {[%emt 0:03:46]} fxg6 {[%emt 0:00:28]} 13. f3 {
[%emt 0:01:27]} Re8 {[%emt 0:00:23]} 14. e4 {[%emt 0:03:02]} dxe4 {[%emt 0:00:
00]} 15. fxe4 {[%emt 0:02:02]} e5 {[%emt 0:00:51]} 16. d5 {[%emt 0:03:14]} Qd6
{[%emt 0:01:32]} 17. Qe2 {[%emt 0:04:51]} c6 {[%emt 0:01:07]} 18. Kh1 {[%emt 0:
00:00]} cxd5 {[%emt 0:00:35]} 19. cxd5 {[%emt 0:00:10]} Rac8 {[%emt 0:00:33]}
20. c4 {[%emt 0:01:29]} Nd7 {[%emt 0:01:25]} 21. a4 {[%emt 0:05:18]} Nc5 {
[%emt 0:01:09]} 22. Ba3 {[%emt 0:01:06]} Qd8 {[%emt 0:00:45]} 23. Bxc5 {
[%emt 0:04:38]} Rxc5 {[%emt 0:00:15]} 24. Rf2 {[%emt 0:02:34]} Qc8 {[%emt 0:00:
00]} 25. Raf1 {[%emt 0:02:55]} Ba6 {[%emt 0:00:10]} 26. Qf3 {[%emt 0:05:25]} h6
{[%emt 0:00:51]} 27. Qf7+ {[%emt 0:03:42]} Kh7 {[%emt 0:00:13]} 28. Qxa7 {
[%emt 0:03:11]} Bxc4 {[%emt 0:00:16]} 29. Rf7 {[%emt 0:03:25]} Rg8 {[%emt 0:00:
00]} 30. Bxc4 {[%emt 0:04:22]} Rxc4 {[%emt 0:00:12]} 31. d6 {[%emt 0:04:31]}
Qg4 {[%emt 0:00:54]} 32. Qxb6 {[%emt 0:05:57]} Rxa4 {[%emt 0:00:29]} 33. d7 {
[%emt 0:01:36]} Rd4 {[%emt 0:00:19]} 34. Qc7 {[%emt 0:02:22]} Rd2 {[%emt 0:00:
00]} 35. Rg1 {[%emt 0:02:46]} Qg5 {[%emt 0:00:58]} 36. Qc8 {[%emt 0:03:03]} Rd8
{[%emt 0:01:49]} 1/2-1/2